bitfinex-derivatives/quotes_BTCF0:USTF0_20250313
["timestamp","ask_amount","ask_price","bid_price","bid_amount"]
[1741846491465,0.1815409,82967.0,82966.0,0.1833409]
[1741846491664,0.055,82967.0,82966.0,0.3133409]
[1741846491863,0.1755394,82967.0,82966.0,0.3133409]
[1741846492461,0.1765394,82967.0,82966.0,0.3183409]
[1741846492661,0.056,82967.0,82966.0,0.3183409]
[1741846492867,0.0308,82967.0,82966.0,0.3383409]
[1741846493366,0.1513394,82967.0,82966.0,0.1978]
[1741846493571,0.1523394,82967.0,82966.0,0.3193409]
[1741846493870,0.0318,82967.0,82966.0,0.3193409]
[1741846494061,0.0318,82967.0,82966.0,0.3393409]
[1741846494263,0.1523394,82967.0,82966.0,0.3393409]
[1741846494462,0.0318,82967.0,82966.0,0.3193409]
[1741846494663,0.1523394,82967.0,82966.0,0.3193409]
[1741846496264,0.1852394,82967.0,82966.0,0.3193409]
[1741846497674,0.1852394,82967.0,82966.0,0.1988]
[1741846499178,0.1852394,82967.0,82966.0,0.3193409]
[1741846499568,0.1852394,82967.0,82966.0,0.1988]
[1741846500477,0.1852394,82967.0,82966.0,0.3193409]
[1741846500663,0.1852394,82967.0,82966.0,0.1988]
[1741846501671,0.1852394,82967.0,82966.0,0.0688]
[1741846502079,0.1852394,82967.0,82966.0,0.3288]
[1741846502275,0.1852394,82967.0,82966.0,0.0363]
[1741846502475,0.1852394,82967.0,82966.0,0.0682]
[1741846502872,0.1852394,82967.0,82966.0,0.1887409]
[1741846503070,0.1523394,82967.0,82966.0,0.3191409]
[1741846503269,0.1225394,82967.0,82966.0,0.3191409]
[1741846505875,0.14375681,82982.0,82966.0,0.0986]
[1741846506178,0.14375681,82982.0,82975.0,0.1205278]
[1741846506179,0.14259681,82982.0,82975.0,0.1205278]
[1741846506368,0.14259681,82982.0,82975.0,0.6243278]
[1741846506369,0.26311491,82982.0,82975.0,0.6243278]
[1741846506567,0.14383682,82982.0,82975.0,0.6243278]
[1741846506771,0.20285571,82982.0,82975.0,0.6243278]
[1741846506977,0.14259681,82982.0,82975.0,0.6885278]
[1741846507177,0.10881206,82976.0,82975.0,0.5647278]
[1741846507384,0.22933846,82976.0,82975.0,0.70040203]
[1741846507772,0.22833846,82976.0,82975.0,0.70140203]
[1741846508086,0.22733846,82976.0,82975.0,0.70140203]
[1741846508571,0.1205264,82976.0,82975.0,0.70140203]
[1741846508770,0.0602622,82978.0,82975.0,0.70140203]
[1741846508974,0.0602622,82978.0,82977.0,0.1205249]
[1741846509269,0.0602622,82978.0,82977.0,0.2005249]
[1741846510675,0.0602622,82978.0,82977.0,0.2025249]
[1741846512083,0.0602604,82980.0,82977.0,0.2025249]
[1741846512281,0.06044023,82982.0,82981.0,0.1205191]
[1741846512482,0.00018073,82982.0,82981.0,0.4805191]
[1741846513480,0.00018073,82982.0,82981.0,0.6105191]
[1741846513977,0.00018073,82982.0,82981.0,0.6115191]
[1741846514587,0.12069843,82982.0,82981.0,0.6115191]
[1741846517677,0.12069843,82982.0,82981.0,0.62045006]
[1741846518090,0.00018073,82982.0,82981.0,0.62045006]
[1741846519186,0.12069843,82982.0,82981.0,0.62045006]
[1741846519388,0.12069843,82982.0,82981.0,0.63263303]
[1741846519696,0.00018073,82982.0,82981.0,0.63263303]
[1741846519991,0.00018073,82982.0,82981.0,0.6115191]
[1741846520893,0.10681206,82995.0,82988.0,0.0602539]
[1741846521188,0.10681206,82995.0,82994.0,0.1205002]
[1741846521377,0.10681206,82995.0,82994.0,0.5905002]
[1741846521989,0.10681206,82995.0,82994.0,0.6508002]
[1741846522192,0.10881206,82995.0,82994.0,0.6508002]
[1741846522791,0.002,82995.0,82994.0,0.6508002]
[1741846522995,0.0313,83000.0,82994.0,0.5303]
[1741846523195,0.005,82995.0,82994.0,0.6508002]
[1741846523489,0.005,82995.0,82994.0,0.66273922]
[1741846523689,0.10681206,83002.0,83001.0,0.1204901]
[1741846523897,0.10681206,83002.0,83001.0,0.6742501]
[1741846524290,0.34779084,83029.0,83001.0,0.9142501]
[1741846524492,0.031,83016.0,83009.0,0.1204785]
[1741846524684,0.28756564,83029.0,83012.0,0.0602366]
[1741846524889,0.25161993,83025.0,83024.0,0.1204567]
[1741846525098,0.25161993,83025.0,83024.0,0.6142167]
[1741846525399,0.25161993,83025.0,83024.0,0.62637483]
[1741846525784,0.25161993,83025.0,83024.0,0.69197483]
[1741846525985,0.25861993,83025.0,83024.0,0.69197483]
[1741846526391,0.007,83025.0,83024.0,0.69197483]
[1741846527398,0.011,83025.0,83024.0,0.69197483]
[1741846528298,0.1314552,83025.0,83024.0,0.69197483]
[1741846528888,0.1244552,83025.0,83024.0,0.37]
[1741846529099,0.1204639,83019.0,83018.0,0.1841654]
[1741846529396,0.1204639,83019.0,83018.0,0.12372]
[1741846529697,0.1204668,83017.0,83016.0,0.00018073]
[1741846530099,0.13250056,83017.0,83016.0,0.00018073]
[1741846530293,0.16350056,83017.0,83016.0,0.00018073]
[1741846530701,0.1514668,83017.0,83016.0,0.00018073]
[1741846531094,0.032,83017.0,83016.0,0.11018073]
[1741846531399,0.032,83017.0,83016.0,0.13064903]
[1741846531593,0.1524668,83017.0,83016.0,0.13064903]
[1741846531794,0.1524668,83017.0,83016.0,0.19374903]
[1741846532301,0.1554668,83017.0,83016.0,0.19374903]
[1741846533089,0.1554668,83017.0,83016.0,0.01018073]
[1741846533795,0.1554668,83017.0,83016.0,0.00018073]
[1741846534197,0.1554668,83017.0,83016.0,0.37064903]
[1741846535594,0.1554668,83017.0,83016.0,0.25018073]
[1741846536497,0.1554668,83017.0,83016.0,0.37064903]
[1741846537302,0.1554668,83017.0,83016.0,0.25018073]
[1741846538002,0.1554668,83017.0,83016.0,0.00018073]
[1741846539625,0.1554668,83017.0,83016.0,0.23064903]
[1741846540594,0.1554668,83017.0,83016.0,0.11018073]
[1741846540795,0.1554668,83017.0,83016.0,0.23064903]
[1741846541202,0.1554668,83017.0,83016.0,0.24299527]
[1741846542907,0.1554668,83017.0,83016.0,0.12252697]
[1741846543394,0.1554668,83017.0,83016.0,0.11018073]
[1741846544197,0.1554668,83017.0,83016.0,0.12247284]
[1741846544404,0.1554668,83017.0,83016.0,0.25294114]
[1741846544811,0.1244668,83017.0,83016.0,0.25294114]
[1741846545702,0.1560668,83017.0,83016.0,0.25294114]
[1741846546309,0.1560668,83017.0,83016.0,0.25302751]
[1741846547205,0.1560668,83017.0,83016.0,0.27302751]
[1741846548001,0.1560668,83017.0,83016.0,0.27306153]
[1741846548704,0.0917262,83027.0,83016.0,0.27306153]
[1741846548705,0.00116,83048.0,83032.0,0.1204451]
[1741846548908,0.18638,83047.0,83032.0,0.3728576]
[1741846549103,0.12062433,83033.0,83032.0,0.3728576]
[1741846549307,0.12062433,83033.0,83032.0,0.4367576]
[1741846549909,0.12062433,83033.0,83032.0,0.43684573]
[1741846550105,0.12062433,83033.0,83032.0,0.31640063]
[1741846550408,0.12762433,83033.0,83032.0,0.31640063]
[1741846550807,0.12762433,83033.0,83032.0,0.28440063]
[1741846551007,0.13462433,83033.0,83032.0,0.25350063]
[1741846551505,0.13462433,83033.0,83032.0,0.01350063]
[1741846551904,0.16492433,83033.0,83032.0,0.01350063]
[1741846553111,0.16492433,83033.0,83032.0,0.001]
[1741846553410,0.1204654,83018.0,83016.0,0.12064893]
[1741846553600,0.1204654,83018.0,83017.0,0.37881321]
[1741846553797,0.1204654,83018.0,83017.0,0.40941321]
[1741846554204,0.1204654,83018.0,83017.0,0.1939668]
[1741846554205,0.1835654,83018.0,83017.0,0.1939668]
[1741846554620,0.1855654,83018.0,83017.0,0.1939668]
[1741846554911,0.1885654,83018.0,83017.0,0.08586301]
[1741846555499,0.1885654,83018.0,83017.0,0.02236301]
[1741846555704,0.1885654,83018.0,83017.0,0.01236575]
[1741846556908,0.1204668,83017.0,83016.0,0.00018073]
[1741846557412,0.1204668,83017.0,83016.0,0.12064903]
[1741846557413,0.1843668,83017.0,83016.0,0.12064903]
[1741846557608,0.1843668,83017.0,83016.0,0.00018073]
[1741846558008,0.1843668,83017.0,83016.0,0.06328073]
[1741846558213,0.1873668,83017.0,83016.0,0.06328073]
[1741846558415,0.1883668,83017.0,83016.0,0.18374903]
[1741846558809,0.1883668,83017.0,83016.0,0.07328073]
[1741846559907,0.1883668,83017.0,83016.0,0.08556313]
[1741846561115,0.1883668,83017.0,83016.0,0.08555655]
[1741846561306,0.1883668,83017.0,83016.0,0.01245655]
[1741846562102,0.1883668,83017.0,83016.0,0.23292485]
[1741846562311,0.1883668,83017.0,83016.0,0.01245655]
[1741846562703,0.1883668,83017.0,83016.0,0.01246831]
[1741846566308,0.1883668,83017.0,83016.0,1e-08]
[1741846566517,0.1883668,83017.0,83014.0,0.0328]
[1741846566815,0.0679,83017.0,83005.0,0.0321]
[1741846567026,0.1204828,83006.0,83005.0,0.0649]
[1741846567208,0.1204828,83006.0,83005.0,0.3149]
[1741846567412,0.1204828,83006.0,83005.0,0.4353843]
[1741846567712,0.1194828,83006.0,83005.0,0.4353843]
[1741846567913,0.1194828,83006.0,83005.0,0.3149]
[1741846568215,0.1841828,83006.0,83005.0,0.3149]
[1741846569008,0.1861828,83006.0,83005.0,0.3149]
[1741846569410,0.1841828,83006.0,83005.0,0.3149]
[1741846569630,0.1851828,83006.0,83005.0,0.3149]
[1741846569815,0.1891828,83006.0,83005.0,0.3149]
[1741846570321,0.1891828,83006.0,83000.0,0.21544641]
[1741846570322,0.1204901,83001.0,83000.0,0.21544641]
[1741846570615,0.13232691,83001.0,83000.0,0.08391851]
[1741846571212,0.19582691,83001.0,83000.0,0.08391851]
[1741846571409,0.19582691,83001.0,83000.0,1e-08]
[1741846571614,0.1204944,82998.0,82997.0,4e-08]
[1741846572515,0.19902832,83001.0,82999.0,0.1204915]
[1741846572713,0.2502378,83001.0,83000.0,0.1204915]
[1741846573022,0.2502378,83001.0,82997.0,4e-08]
[1741846573023,0.0602457,83000.0,82997.0,4e-08]
[1741846573319,0.1204944,82998.0,82997.0,0.01000004]
[1741846573523,0.1204944,82998.0,82997.0,4e-08]
[1741846573916,0.1527944,82998.0,82997.0,4e-08]
[1741846574223,0.1204944,82998.0,82997.0,0.12049594]
[1741846574625,0.003,82998.0,82997.0,0.12049594]
[1741846574922,0.1234944,82998.0,82997.0,0.25049594]
[1741846575118,0.1204944,82998.0,82997.0,0.31429594]
[1741846575323,0.1214944,82998.0,82997.0,0.31429594]
[1741846575722,0.1214944,82998.0,82997.0,0.19380004]
[1741846576020,0.1204944,82998.0,82997.0,0.16140004]
[1741846576222,0.1204944,82998.0,82997.0,0.16340004]
[1741846576421,0.1547944,82998.0,82997.0,0.16340004]
[1741846576621,0.1857944,82998.0,82997.0,0.16340004]
[1741846576818,0.1857944,82998.0,82997.0,0.03340004]
[1741846577618,0.1857944,82998.0,82997.0,0.03240004]
[1741846578016,0.1877944,82998.0,82997.0,0.03240004]
[1741846578217,0.1877944,82998.0,82990.0,0.0309]
[1741846578218,0.1205046,82991.0,82990.0,0.0309]
[1741846578820,0.1205147,82984.0,82983.0,0.0309]
[1741846579021,0.1205147,82984.0,82983.0,0.04352285]
[1741846579321,0.1205147,82984.0,82983.0,0.44403905]
[1741846579523,0.1205147,82984.0,82983.0,0.32352285]
[1741846579722,0.1527147,82984.0,82983.0,0.32352285]
[1741846579922,0.16469404,82984.0,82983.0,0.32352285]
[1741846580631,0.16469404,82984.0,82983.0,0.04352285]
[1741846581222,0.16469404,82984.0,82983.0,0.04452285]
[1741846581622,0.1527147,82984.0,82983.0,0.04452285]
[1741846581923,0.16467834,82984.0,82983.0,0.01362285]
[1741846582429,0.16467834,82984.0,82983.0,0.001]
[1741846582930,0.16467834,82984.0,82983.0,0.01376597]
[1741846584929,0.16467834,82984.0,82983.0,0.001]
[1741846585525,0.1205264,82976.0,82975.0,0.00018073]
[1741846585723,0.1205264,82976.0,82975.0,0.01292599]
[1741846586427,0.1205264,82976.0,82975.0,0.04372599]
[1741846586823,0.1205264,82976.0,82975.0,0.04572599]
[1741846587832,0.1205264,82976.0,82975.0,0.01492599]
[1741846588035,0.1205264,82976.0,82975.0,0.01466622]
[1741846588240,0.1205264,82976.0,82975.0,0.04546622]
[1741846588425,0.1205264,82976.0,82975.0,0.03298073]
[1741846590124,0.1205264,82976.0,82975.0,0.17601252]
[1741846590329,0.1205264,82976.0,82975.0,0.05548472]
[1741846590737,0.1205264,82976.0,82975.0,0.17601252]
[1741846591930,0.1205264,82976.0,82975.0,0.05548472]
[1741846592731,0.1531264,82976.0,82975.0,0.04548472]
[1741846593234,0.1541264,82976.0,82975.0,0.04548472]
[1741846593424,0.1541264,82976.0,82975.0,0.00218073]
[1741846593824,0.1205351,82970.0,82969.0,0.0331]
[1741846594136,0.1205351,82970.0,82969.0,0.04546795]
[1741846594728,0.1847351,82970.0,82969.0,0.04546795]
[1741846594925,0.1847351,82970.0,82969.0,0.0331]
[1741846595129,0.1817351,82970.0,82969.0,0.0331]
[1741846595833,0.1817351,82970.0,82969.0,0.0381]
[1741846596635,0.1518351,82970.0,82969.0,0.1626365]
[1741846596935,0.1215351,82970.0,82969.0,0.2626365]
[1741846597142,0.1215351,82970.0,82969.0,0.15440419]
[1741846598035,0.1215351,82970.0,82969.0,0.33440419]
[1741846598233,0.001,82970.0,82969.0,0.47494069]
[1741846598435,0.1215351,82970.0,82969.0,0.47494069]
[1741846598635,0.1215351,82970.0,82969.0,0.33440419]
[1741846599129,0.1215351,82970.0,82969.0,0.45494069]
[1741846599832,0.1215351,82970.0,82969.0,0.47494069]
[1741846600143,0.1215351,82970.0,82969.0,0.45494069]
[1741846600341,0.1215351,82970.0,82969.0,0.45504005]
[1741846600733,0.1215351,82970.0,82969.0,0.08580355]
[1741846601038,0.1517351,82970.0,82969.0,0.08580355]
[1741846601230,0.1517351,82970.0,82969.0,0.08573975]
[1741846601735,0.1517351,82970.0,82969.0,0.05443975]
[1741846602133,0.1832351,82970.0,82969.0,0.05443975]
[1741846603142,0.1832351,82970.0,82969.0,0.0421]
[1741846604239,0.1517351,82970.0,82969.0,0.0421]
[1741846605343,0.1215351,82970.0,82969.0,0.0421]
[1741846605539,0.1215351,82970.0,82969.0,0.1626365]
[1741846607336,0.1215351,82970.0,82969.0,0.1726365]
[1741846608245,0.1215351,82970.0,82969.0,0.0521]
[1741846609049,0.1835351,82970.0,82969.0,0.0521]
[1741846610233,0.1835351,82970.0,82969.0,0.0421]
[1741846612337,0.063,82970.0,82961.0,0.00018073]
[1741846612547,0.1205467,82962.0,82961.0,0.00018073]
[1741846612744,0.1205467,82962.0,82961.0,0.12072893]
[1741846612947,0.093472,82964.0,82963.0,0.1205453]
[1741846613145,0.093472,82964.0,82963.0,0.1305453]
[1741846613547,0.093472,82964.0,82963.0,0.01]
[1741846614042,0.123572,82964.0,82963.0,0.01]
[1741846615446,0.123572,82964.0,82961.0,0.00018073]
[1741846615650,0.1205467,82962.0,82961.0,0.00018073]
[1741846616743,0.1844467,82962.0,82961.0,0.00018073]
[1741846622752,0.1205467,82962.0,82961.0,0.00018073]
[1741846622952,0.1205467,82962.0,82961.0,0.11018073]
[1741846624648,0.1537467,82962.0,82961.0,0.11018073]
[1741846626152,0.1537467,82962.0,82961.0,3e-08]
[1741846626364,0.2165467,82962.0,82961.0,3e-08]
[1741846628556,0.2175467,82962.0,82961.0,3e-08]
[1741846631261,0.11052632,82962.0,82948.0,0.25626719]
[1741846631565,0.0602819,82951.0,82937.0,0.00015598]
[1741846631756,0.355556,82950.0,82943.0,0.0315]
[1741846631955,0.12368,82949.0,82944.0,0.0311]
[1741846632167,0.1205714,82945.0,82944.0,0.0311]
[1741846632359,0.2808226,82950.0,82944.0,0.0311]
[1741846632659,0.21938,82950.0,82946.0,0.1205692]
[1741846632865,0.21938,82950.0,82947.0,0.063]
[1741846633064,0.18758,82950.0,82947.0,0.063]
[1741846633264,0.00018084,82955.0,82952.0,0.0602801]
[1741846633457,0.00018084,82955.0,82954.0,0.1205583]
[1741846633657,0.00018084,82955.0,82954.0,0.1305583]
[1741846633858,0.00018084,82955.0,82954.0,0.1624583]
[1741846635266,0.00518084,82955.0,82954.0,0.1624583]
[1741846635466,0.00918084,82955.0,82954.0,0.1624583]
[1741846637770,0.00918084,82955.0,82954.0,0.1824583]
[1741846637967,0.00918084,82955.0,82954.0,0.1624583]
[1741846638173,0.00918084,82955.0,82954.0,0.1824583]
[1741846638670,0.00918084,82955.0,82954.0,0.2324583]
[1741846638870,0.00918084,82955.0,82954.0,0.1824583]
[1741846641263,0.14282303,82965.0,82964.0,0.1205438]
[1741846641467,0.14282303,82965.0,82964.0,0.1905438]
[1741846641866,0.0312,82968.0,82964.0,0.1905438]
[1741846641867,0.18001791,82972.0,82971.0,0.1205336]
[1741846642076,0.18001791,82972.0,82971.0,0.4005336]
[1741846642264,0.0319,82992.0,82978.0,0.1205235]
[1741846642464,0.00018084,82980.0,82978.0,0.4205235]
[1741846642977,0.17233797,82993.0,82992.0,0.1205031]
[1741846642978,0.17117797,82993.0,82992.0,0.1205031]
[1741846643175,0.1216607,82994.0,82993.0,0.1205017]
[1741846643378,0.13275063,82994.0,82993.0,0.1205017]
[1741846643672,0.1205007,82994.0,82993.0,0.1205017]
[1741846643873,0.0319,82995.0,82992.0,0.0317]
[1741846643874,0.1807525,82993.0,82992.0,0.0317]
[1741846644470,0.1807525,82993.0,82992.0,0.0648]
[1741846644680,0.2117525,82993.0,82992.0,0.0648]
[1741846644979,0.0912508,82993.0,82992.0,0.1853031]
[1741846645178,0.1052508,82993.0,82992.0,0.1863031]
[1741846645368,0.1358508,82993.0,82992.0,0.1863031]
[1741846645572,0.1358508,82993.0,82992.0,0.0327]
[1741846645970,0.0756,82993.0,82992.0,0.0327]
[1741846646279,0.0756,82993.0,82992.0,0.1532031]
[1741846646673,0.0756,82993.0,82992.0,0.0327]
[1741846647270,0.0756,82993.0,82992.0,0.1532031]
[1741846647870,0.1961017,82993.0,82992.0,0.0327]
[1741846648276,0.1961017,82993.0,82992.0,0.001]
[1741846650683,0.0756,82993.0,82992.0,0.1215031]
[1741846650977,0.0756,82993.0,82992.0,0.3615031]
[1741846650978,0.0446,82993.0,82992.0,0.3615031]
[1741846651178,0.0446,82993.0,82992.0,0.241]
[1741846651782,0.1651017,82993.0,82992.0,0.241]
[1741846651983,0.0446,82993.0,82992.0,0.303]
[1741846652173,0.1651017,82993.0,82992.0,0.303]
[1741846652373,0.1970017,82993.0,82992.0,0.303]
[1741846653472,0.1970017,82993.0,82992.0,0.2711]
[1741846654675,0.1970017,82993.0,82992.0,0.001]
[1741846654875,0.0765,82993.0,82992.0,0.241]
[1741846655078,0.0446,82993.0,82992.0,0.3615031]
[1741846655380,0.00018084,83002.0,82992.0,0.3915031]
[1741846655574,0.0322,83001.0,83000.0,0.1204915]
[1741846655976,0.00018084,83002.0,83001.0,0.1204901]
[1741846656181,0.00018084,83002.0,83001.0,0.3810901]
[1741846656478,0.00018084,83002.0,83001.0,0.4117901]
[1741846657581,0.00218084,83002.0,83001.0,0.4117901]
[1741846658383,0.00018084,83002.0,83001.0,0.4117901]
[1741846658584,0.00518084,83002.0,83001.0,0.4117901]
[1741846658776,0.00718084,83002.0,83001.0,0.4127901]
[1741846658972,0.00718084,83002.0,83001.0,0.3427901]
[1741846659178,0.00718084,83002.0,83001.0,0.2223]
[1741846659384,0.12766944,83002.0,83001.0,0.2223]
[1741846660181,0.12766944,83002.0,83001.0,0.1916]
[1741846660385,0.22256944,83002.0,83001.0,0.1916]
[1741846661079,0.10208084,83002.0,83001.0,0.1916]
[1741846661279,0.10208084,83002.0,83001.0,0.3120901]
[1741846661280,0.07098084,83002.0,83001.0,0.3120901]
[1741846662484,0.19146944,83002.0,83001.0,0.1916]
[1741846672481,0.07098084,83002.0,83001.0,0.1916]
[1741846672679,0.07098084,83002.0,83001.0,0.3120901]
[1741846672680,0.00718084,83002.0,83001.0,0.3120901]
[1741846672883,0.00718084,83002.0,83001.0,0.3425901]
[1741846673284,0.00718084,83002.0,83001.0,0.3625901]
[1741846674192,0.00718084,83002.0,83001.0,0.37458036]
[1741846674388,0.01192387,83015.0,83013.0,0.1204726]
[1741846674590,0.01192387,83015.0,83013.0,0.3904726]
[1741846674887,0.21151054,83014.0,83013.0,0.3904726]
[1741846675292,0.21151054,83014.0,83013.0,0.4550726]
[1741846676093,0.21451054,83014.0,83013.0,0.4150726]
[1741846676288,0.21451054,83014.0,83013.0,0.4350726]
[1741846676691,0.21551054,83014.0,83013.0,0.4160726]
[1741846677095,0.21551054,83014.0,83013.0,0.4260726]
[1741846677291,0.0357,83014.0,83013.0,0.4250726]
[1741846677595,0.0367,83014.0,83013.0,0.4160726]
[1741846678396,0.004,83014.0,83013.0,0.4460726]
[1741846678597,0.01181761,83016.0,83015.0,0.1204697]
[1741846678785,0.0309,83020.0,83015.0,0.02]
[1741846678990,0.1204668,83017.0,83016.0,0.0306]
[1741846679186,0.1204668,83017.0,83016.0,0.02]
[1741846679388,0.1836668,83017.0,83016.0,0.02]
[1741846679587,0.1204712,83014.0,83013.0,0.001]
[1741846680593,0.1817025,83016.0,83015.0,0.001]
[1741846681397,0.001,83014.0,83013.0,0.001]
[1741846681598,0.1214719,83014.0,83013.0,0.001]
[1741846682996,0.1204755,83012.0,83011.0,0.1204754]
[1741846683300,0.0602342,83016.0,83010.0,0.185677]
[1741846683301,0.1204755,83011.0,83010.0,0.185677]
[1741846684102,0.1204828,83006.0,83005.0,0.00018073]
[1741846684298,0.1204828,83006.0,83005.0,0.01018073]
[1741846685399,0.1204828,83006.0,83005.0,0.16376503]
[1741846685597,0.1204828,83006.0,83005.0,0.04328073]
[1741846685997,0.1214828,83006.0,83005.0,0.04328073]
[1741846686501,0.1234828,83006.0,83005.0,0.16376503]
[1741846687094,0.003,83006.0,83005.0,0.18376503]
[1741846687294,0.003,83006.0,83005.0,0.16376503]
[1741846687606,0.003,83006.0,83005.0,0.18376503]
[1741846688509,0.003,83006.0,83005.0,0.16376503]
[1741846689206,0.003,83006.0,83005.0,0.18376503]
[1741846690109,0.003,83006.0,83005.0,0.16376503]
[1741846690902,0.1234828,83006.0,83005.0,0.16376503]
[1741846691315,0.003,83006.0,83005.0,0.18376503]
[1741846693014,0.003,83006.0,83005.0,0.20376503]
[1741846694706,0.003,83006.0,83005.0,0.18376503]
[1741846694899,0.1234828,83006.0,83005.0,0.16376503]
[1741846695104,0.1234828,83006.0,83005.0,0.38022872]
[1741846695906,0.1234828,83006.0,83005.0,0.40022872]
[1741846696106,0.003,83006.0,83005.0,0.40022872]
[1741846696307,0.1234828,83006.0,83005.0,0.38022872]
[1741846696507,0.1234828,83006.0,83005.0,0.40022872]
[1741846696708,0.003,83006.0,83005.0,0.42022872]
[1741846697506,0.003,83006.0,83005.0,0.40022872]
[1741846698310,0.0118478,83020.0,83005.0,0.27974442]
[1741846698517,0.00018073,83022.0,83005.0,0.27974442]
[1741846698518,0.00018073,83022.0,83019.0,0.1204639]
[1741846698712,0.00018073,83022.0,83021.0,0.120461]
[1741846698912,0.00018073,83022.0,83021.0,0.150461]
[1741846699108,0.12064033,83022.0,83021.0,0.183161]
[1741846699307,0.00018073,83022.0,83021.0,0.19496233]
[1741846699516,0.00018073,83022.0,83021.0,0.18496233]
[1741846700016,0.03078073,83022.0,83021.0,0.25616233]
[1741846700310,0.03078073,83022.0,83021.0,0.25816233]
[1741846700311,0.00318073,83022.0,83021.0,0.25816233]
[1741846700515,0.00318073,83022.0,83021.0,0.21816233]
[1741846700707,0.00318073,83022.0,83021.0,0.26816233]
[1741846702703,0.120448,83030.0,83029.0,0.1204494]
[1741846702917,0.0321,83032.0,83029.0,0.1604494]
[1741846703115,0.1525451,83032.0,83031.0,0.1204465]
[1741846703316,0.1525451,83032.0,83031.0,0.1404465]
[1741846703615,0.1525451,83032.0,83031.0,0.2343465]
[1741846704518,0.1525451,83032.0,83031.0,0.0519]
[1741846705109,0.1525451,83032.0,83031.0,0.1723465]
[1741846705309,0.1525451,83032.0,83031.0,0.0519]
[1741846705509,0.1525451,83032.0,83031.0,0.1723465]
[1741846705710,0.1525451,83032.0,83031.0,0.1733465]
[1741846706412,0.1525451,83032.0,83031.0,0.1743465]
[1741846709715,0.0321,83032.0,83031.0,0.1743465]
[1741846709923,0.00180732,83033.0,83032.0,0.1204451]
[1741846710117,0.00180732,83033.0,83032.0,0.2034451]
[1741846710428,0.12225092,83033.0,83032.0,0.0507]
[1741846710616,0.12225092,83033.0,83032.0,0.02]
[1741846710816,0.15505092,83033.0,83032.0,0.02]
[1741846711015,0.18615092,83033.0,83032.0,0.02]
[1741846711218,0.18615092,83033.0,83032.0,0.021]
[1741846711511,0.1204567,83024.0,83023.0,0.00018073]
[1741846711714,0.1194567,83024.0,83023.0,0.00018073]
[1741846712316,0.1833567,83024.0,83023.0,0.00018073]
[1741846712827,0.1194726,83013.0,83012.0,0.21646369]
[1741846713125,0.2430326,83013.0,83012.0,0.21646369]
[1741846713620,0.2420326,83013.0,83012.0,9e-08]
[1741846713826,0.0602382,83011.0,82997.0,0.39073377]
[1741846714024,0.1205104,82987.0,82981.0,0.57452378]
[1741846714221,0.1205104,82987.0,82986.0,0.50270831]
[1741846714430,0.1205104,82987.0,82986.0,0.62322011]
[1741846714431,0.1195104,82987.0,82986.0,0.62322011]
[1741846714824,0.12356,82998.0,82986.0,0.51270831]
[1741846715023,0.00018073,82995.0,82994.0,0.1204995]
[1741846715326,0.00018073,82995.0,82994.0,0.1304995]
[1741846715822,0.00018073,82995.0,82994.0,0.1504995]
[1741846716025,0.00018073,82995.0,82994.0,0.1304995]
[1741846716228,0.00018073,82995.0,82994.0,0.1314995]
[1741846717423,0.12067953,82995.0,82994.0,0.1314995]
[1741846717619,0.12067953,82995.0,82994.0,0.1646995]
[1741846719121,0.00018073,82995.0,82994.0,0.1646995]
[1741846719313,0.00018073,82995.0,82994.0,0.1946995]
[1741846720417,0.00018073,82995.0,82994.0,0.1646995]
[1741846720613,0.00018073,82995.0,82994.0,0.1846995]
[1741846722732,0.32331681,83011.0,83010.0,0.120477]
[1741846722923,0.39897684,83011.0,83010.0,0.120477]
[1741846723920,0.40097684,83011.0,83010.0,0.131477]
[1741846724624,0.38901681,83011.0,83010.0,0.131477]
[1741846724830,0.26853701,83011.0,83010.0,0.131477]
[1741846725430,0.127938,83011.0,83010.0,0.131477]
[1741846726829,0.004,83011.0,83010.0,0.16383272]
[1741846728232,0.004,83011.0,83010.0,0.17296351]
[1741846728429,0.00018073,83019.0,83018.0,0.1204654]
[1741846728634,0.00018073,83019.0,83018.0,0.2940254]
[1741846729228,0.12064463,83019.0,83018.0,0.18526]
[1741846729430,0.13263208,83019.0,83018.0,0.0617]
[1741846729628,0.12264463,83019.0,83018.0,0.0617]
[1741846729835,0.18484463,83019.0,83018.0,0.0617]
[1741846731226,0.18484463,83019.0,83018.0,0.1821654]
[1741846731430,0.18484463,83019.0,83018.0,0.0617]
[1741846734137,0.18484463,83019.0,83018.0,0.1821654]
[1741846734439,0.18484463,83019.0,83018.0,0.2152654]
[1741846736746,0.14259901,83028.0,83027.0,0.1204523]
[1741846736937,0.26304991,83028.0,83027.0,0.01]
[1741846737449,0.26304991,83028.0,83027.0,0.1304523]
[1741846737951,0.26304991,83028.0,83027.0,0.1644523]
[1741846738136,0.14259901,83028.0,83027.0,0.1644523]
[1741846738544,0.26304991,83028.0,83027.0,0.1644523]
[1741846740249,0.1204509,83028.0,83027.0,0.044]
[1741846740444,0.1204509,83028.0,83027.0,0.034]
[1741846740743,0.1204509,83028.0,83027.0,0.001]
[1741846744553,0.26304991,83028.0,83027.0,0.001]
[1741846745643,0.1204625,83020.0,83016.0,0.0327]
[1741846745843,0.1204625,83020.0,83019.0,0.12064463]
[1741846746346,0.1204625,83020.0,83019.0,0.00018073]
[1741846746552,0.1522625,83021.0,83020.0,0.1204625]
[1741846746745,0.1522625,83021.0,83020.0,0.1834625]
[1741846746938,0.1522625,83021.0,83020.0,0.2234625]
[1741846746939,0.0318,83021.0,83020.0,0.2234625]
[1741846747145,0.14259901,83028.0,83027.0,0.1204523]
[1741846747545,0.14259901,83028.0,83027.0,0.1304523]
[1741846747746,0.26304991,83028.0,83027.0,0.1304523]
[1741846748145,0.14259901,83028.0,83027.0,0.1304523]
[1741846748752,0.1530509,83028.0,83027.0,0.01]
[1741846748949,0.1530509,83028.0,83027.0,0.1304523]
[1741846749249,0.1530509,83028.0,83027.0,0.1920523]
[1741846749452,0.1530509,83028.0,83027.0,0.0716]
[1741846749753,0.1540509,83028.0,83027.0,0.1930523]
[1741846752152,0.1540509,83028.0,83027.0,0.0726]
[1741846754259,0.001,83028.0,83027.0,0.1930523]
[1741846754459,0.1214509,83028.0,83027.0,0.1930523]
[1741846754656,0.1214509,83028.0,83027.0,0.0726]
[1741846755466,0.1214509,83028.0,83027.0,0.1930523]
[1741846755762,0.1214509,83028.0,83027.0,0.0726]
[1741846755961,0.1517509,83028.0,83027.0,0.0726]
[1741846756166,0.1517509,83028.0,83027.0,0.1930523]
[1741846757656,0.1517509,83028.0,83027.0,0.0726]
[1741846758257,0.1517509,83028.0,83027.0,0.1930523]
[1741846758859,0.1517509,83028.0,83027.0,0.0726]
[1741846760165,0.1517509,83028.0,83027.0,0.0626]